fUST/lending_fUST_20260315
["ID","MTS","AMOUNT","RATE_DAILY","PERIOD"]
[408391914,1773551438998,-500.31540802,6.854e-05,2]
[408391915,1773551439007,-500.36561474,6.854e-05,2]
[408391916,1773551439016,-586.78442139,6.854e-05,2]
[408391917,1773551439025,-509.9544815,6.854e-05,2]
[408391918,1773551439034,-500.0,6.854e-05,2]
[408391919,1773551439043,-720.0,6.908e-05,2]
[408391920,1773551439052,-1500.0,7.256e-05,2]
[408391921,1773551439061,-388.81119514,7.402e-05,2]
[408391922,1773551439071,-864.0,7.599e-05,2]
[408391923,1773551439079,-2000.0,7.804e-05,2]
[408391924,1773551439089,-2627.73931848,8.352e-05,2]
[408391925,1773551439099,-1000.0,8.359e-05,2]
[408391926,1773551439108,-1000.0,9.195e-05,2]
[408391927,1773551439117,-244.0,9.195e-05,2]
[408391928,1773551439126,-197.905555,9.241e-05,2]
[408391929,1773551439136,-1000.0,0.00010114,2]
[408391930,1773551439146,-492.0,0.00010114,2]
[408391931,1773551439155,-161.8724939,0.00010567,2]
[408391932,1773551439164,-1000.0,0.00011126,2]
[408391933,1773551439174,-791.0,0.00011126,2]
[408391934,1773551439183,-500.0,0.00012163,2]
[408391935,1773551439193,-500.0,0.00012163,2]
[408391936,1773551439203,-380.81881648,0.00012163,2]
[408391937,1773551439212,-4007.424946,0.00012164,2]
[408391938,1773551439223,-1000.0,0.00012238,2]
[408391939,1773551439233,-1000.0,0.00012238,2]
[408391940,1773551439245,-313.03,0.00012238,2]
[408391941,1773551439255,-500.0,0.00012274,2]
[408391942,1773551439267,-500.0,0.00012274,2]
[408391943,1773551439276,-553.86298819,0.00012274,2]
[408391944,1773551439285,-501.50650543,0.00012274,2]
[408391945,1773551439294,-500.0,0.00012274,2]
[408391946,1773551439303,-263.30377684,0.00012274,2]
[408391947,1773551439312,-270.70201513,0.00012274,2]
[408391948,1773551439321,-328.33671921,0.00012274,2]
[408391949,1773551439330,-500.16724511,0.00012274,2]
[408391950,1773551439339,-500.74919815,0.00012274,2]
[408391951,1773551439348,-500.13098315,0.00012274,2]
[408391952,1773551439357,-500.14324779,0.00012274,2]
[408391953,1773551439366,-197.905555,0.00012321,2]
[408391954,1773551439375,-500.0,0.00012822,2]
[408391955,1773551439384,-500.0,0.00012822,2]
[408391956,1773551439394,-1000.0,0.00012822,2]
[408391957,1773551439403,-248.40372144,0.000129,2]
[408391958,1773551439413,-248.40372141,0.000129,2]
[408391959,1773551439422,-248.40372141,0.0001295,2]
[408391960,1773551439431,-166.36925007,0.0001298,2]
[408391961,1773551439441,-2150.738,0.0001298,2]
[408391962,1773551439451,-100429.16598429,0.0001299,2]
[408391963,1773551439467,-128765.4402842,0.0001299,2]
[408392002,1773552002677,157.33,2e-05,2]
[408392003,1773552002952,157.33,2e-05,2]
[408392004,1773552003289,157.33,2e-05,2]
[408392005,1773552003612,157.33,2e-05,2]
[408392006,1773552004100,157.33,2e-05,2]
[408392007,1773552004372,157.33,2e-05,2]
[408392008,1773552004640,157.33,2e-05,2]
[408392009,1773552004912,157.33,2e-05,2]
[408392010,1773552005191,157.33,2e-05,2]
[408392047,1773552631643,-2024.73270172,5.774e-05,2]
[408392049,1773552631653,-5000.0,5.832e-05,2]
[408392051,1773552631663,-504.0,5.832e-05,2]
[408392053,1773552631672,-5000.0,5.891e-05,2]
[408392055,1773552631682,-1043.52709354,6.182e-05,2]
[408392057,1773552631691,-2043.03673891,6.224e-05,2]
[408392059,1773552631700,-13162.8270664,6.715e-05,2]
[408392061,1773552631710,-166.822,6.715e-05,2]
[408392063,1773552631719,-300.0,6.848e-05,2]
[408392065,1773552631728,-300.0,6.848e-05,2]
[408392067,1773552631737,-300.0,6.848e-05,2]
[408392069,1773552631747,-300.0,6.848e-05,2]
[408392072,1773552631757,-300.0,6.848e-05,2]
[408392074,1773552631767,-300.0,6.848e-05,2]
[408392077,1773552631776,-300.0,6.848e-05,2]
[408392079,1773552631786,-300.0,6.848e-05,2]
[408392081,1773552631795,-300.0,6.848e-05,2]
[408392083,1773552631804,-300.0,6.848e-05,2]
[408392085,1773552631814,-300.0,6.848e-05,2]
[408392087,1773552631823,-300.0,6.848e-05,2]
[408392089,1773552631832,-300.0,6.848e-05,2]
[408392091,1773552631841,-300.0,6.848e-05,2]
[408392093,1773552631850,-300.0,6.848e-05,2]
[408392095,1773552631859,-500.92613377,6.85e-05,2]
[408392097,1773552631868,-500.42285963,6.85e-05,2]
[408392099,1773552631877,-500.0,6.85e-05,2]
[408392101,1773552631886,-500.0,6.85e-05,2]
[408392103,1773552631896,-500.0,6.85e-05,2]
[408392105,1773552631905,-500.0,6.85e-05,2]
[408392106,1773552631914,-500.0,6.85e-05,2]
[408392108,1773552631923,-235.69630603,6.85e-05,2]
[408392110,1773552631932,-500.0,6.85e-05,2]
[408392112,1773552631941,-500.0,6.85e-05,2]
[408392113,1773552631950,-500.0,6.85e-05,2]
[408392115,1773552631960,-500.0,6.85e-05,2]
[408392116,1773552631973,-500.0,6.85e-05,2]
[408392117,1773552631982,-500.0,6.85e-05,2]
[408392118,1773552631991,-600.0,6.984e-05,2]
[408392119,1773552632001,-1011.07928755,7.398e-05,2]
[408392120,1773552632012,-1095.95658464,7.398e-05,2]
[408392121,1773552632023,-1000.0,7.398e-05,2]
[408392122,1773552632033,-1000.0,7.398e-05,2]
[408392123,1773552632045,-3042.54638429,7.447e-05,2]
[408392124,1773552632054,-720.0,7.682e-05,2]
[408392125,1773552632063,-503.59453697,7.946e-05,2]
[408392126,1773552632073,-1500.0,7.946e-05,2]
[408392127,1773552632082,-864.0,8.451e-05,2]
[408392128,1773552632091,-2000.0,8.494e-05,2]
[408392129,1773552632100,-3404.87668096,8.671e-05,2]
[408392130,1773552632109,-2500.0,9.042e-05,2]
[408392131,1773552632119,-1000.0,9.296e-05,2]
[408392132,1773552632128,-3000.0,9.59e-05,2]
[408392133,1773552632137,-4042.05602966,9.895e-05,2]
[408392134,1773552632146,-3500.0,0.00010138,2]
[408392135,1773552632155,-1000.0,0.00010225,2]
[408392136,1773552632164,-244.0,0.00010225,2]
[408392137,1773552632174,-4000.0,0.00010686,2]
[408392138,1773552632183,-4052.63574689,0.00011118,2]
[408392139,1773552632192,-3600.4245371,0.00011234,2]
[408392140,1773552632202,-1000.0,0.00011248,2]
[408392141,1773552632212,-492.0,0.00011248,2]
[408392142,1773552632221,-500.0,0.00012263,2]
[408392143,1773552632231,-500.0,0.00012295,2]
[408392144,1773552632240,-256.20943007,0.00012295,2]
[408392145,1773552632249,-500.0,0.00012319,2]
[408392146,1773552632258,-500.0,0.00012319,2]
[408392147,1773552632267,-5000.0,0.00012341,2]
[408392148,1773552632277,-4700.39481298,0.00012342,2]
[408392149,1773552632286,-209.68154634,0.00012371,2]
[408392150,1773552632296,-1000.0,0.00012372,2]
[408392151,1773552632306,-791.0,0.00012372,2]
[408392152,1773552632315,-286.0629629,0.00012771,2]
[408392153,1773552632324,-500.24088294,0.00012873,2]
[408392154,1773552632333,-86538.65058529,0.00012899,2]
[408392162,1773552637759,-549.46438158,0.00012899,2]
[408392163,1773552637771,-3532.14960977,0.00012899,2]
[408392164,1773552637819,-68595.46600765,0.00012899,2]
[408392165,1773552637830,-6984.30614213,0.00012899,2]
[408392174,1773552642973,-5000.0,0.0001277,2]
[408392175,1773552642982,-16980.73563568,0.0001277,2]
[408392185,1773552645781,-921.64530477,0.0001277,2]
[408392186,1773552645839,-1340.0,0.0001277,2]
[408392334,1773553837909,-1208.7291331,0.00011095,2]
[408392358,1773553843228,-2477.43007392,0.00011095,2]
[408392359,1773553843240,-1313.84079298,0.00011095,2]
[408392360,1773553843250,-1041.33765075,0.00011207,2]
[408392361,1773553843260,-577.0,0.00011207,2]
[408392362,1773553843269,-411.17860182,0.00011434,2]
[408392366,1773553846081,-1684.21632396,0.00011434,2]
[408392367,1773553846091,-300.0,0.00012262,2]
[408392368,1773553846101,-300.0,0.00012262,2]
[408392369,1773553846110,-300.0,0.00012262,2]
[408392370,1773553846119,-300.0,0.00012262,2]
[408392371,1773553846128,-300.0,0.00012262,2]
[408392372,1773553846138,-300.0,0.00012262,2]
[408392373,1773553846147,-300.0,0.00012262,2]
[408392374,1773553846156,-300.0,0.00012262,2]
[408392375,1773553846166,-300.0,0.00012262,2]
[408392376,1773553846175,-300.0,0.00012262,2]
[408392377,1773553846184,-300.0,0.00012262,2]
[408392378,1773553846194,-300.0,0.00012262,2]
[408392379,1773553846203,-300.0,0.00012262,2]
[408392380,1773553846213,-300.0,0.00012262,2]
[408392381,1773553846223,-300.0,0.00012262,2]
[408392382,1773553846233,-324.6985643,0.00012283,2]
[408392383,1773553846242,-324.6985643,0.00012296,2]
[408392384,1773553846251,-454.8628338,0.00012301,2]
[408392385,1773553846260,-4381.43858674,0.000127,2]
[408392386,1773553846270,-160.0,0.000127,2]
[408392387,1773553846279,-266.39523265,0.00012741,2]
[408392388,1773553846289,-6193.34253912,0.0001277,2]
[408392389,1773553846301,-4884.1255634,0.0001277,2]
[408392390,1773553846310,-2150.738,0.00012792,2]
[408392391,1773553846322,-21186.43054899,0.000128,2]
[408392396,1773554500467,-1852.34780901,0.00011717,2]
[408392397,1773554500480,-977.79635642,0.00011717,2]
[408392398,1773554500489,-1852.34780901,0.00011835,2]
[408392433,1773554852183,10000.0,2.001e-05,2]
[408392435,1773555003149,156.26,2e-05,2]
[408392436,1773555004814,156.25,2e-05,2]
[408392468,1773555032081,-5000.0,2.079e-05,2]
[408392470,1773555032091,-156.26,2.1e-05,2]
[408392472,1773555032100,-156.26,2.1e-05,2]
[408392474,1773555032109,-625.0,2.277e-05,2]
[408392476,1773555032118,-544.72,2.3e-05,2]
[408392478,1773555032127,-1200.0,0.00011955,2]
[408392480,1773555032136,-290.63653883,0.00011956,2]
[408392482,1773555032145,-169.9744598,0.00011973,2]
[408392484,1773555032155,-300.0,0.00012041,2]
[408392485,1773555032165,-300.0,0.00012041,2]
[408392487,1773555032174,-300.0,0.00012041,2]
[408392489,1773555032183,-300.0,0.00012041,2]
[408392490,1773555032193,-705.51857889,0.00012042,4]
[408392491,1773555032202,-500.0,0.00012173,2]
[408392492,1773555032211,-3829.9084353,0.0001219,2]
[408392493,1773555032222,-2521.89218845,0.0001219,2]
[408392571,1773555038284,-10565.5,0.0001219,2]
[408392574,1773555040775,-496.62517147,0.0001219,2]
[408392583,1773555043283,-14559.34357715,0.0001219,2]
[408392590,1773555046173,-304.0618709,0.0001219,2]
[408392591,1773555046395,-3548.55203727,0.0001219,2]
[408392644,1773556232161,-1036.51796919,9.87e-05,2]
[408392647,1773556232171,-5000.0,9.97e-05,2]
[408392648,1773556232181,-829.0,0.0001007,2]
[408392650,1773556232190,-3060.23771826,0.00010071,2]
[408392652,1773556232199,-344.96667259,0.00010071,2]
[408392803,1773556246304,-216.03332741,0.00010071,2]
[408392805,1773556246314,-300.0,0.00011133,2]
[408392807,1773556246324,-479.51141876,0.00011134,2]
[408392809,1773556246333,-300.0,0.000117,2]
[408392811,1773556246342,-300.0,0.000117,2]
[408392813,1773556246351,-300.0,0.000117,2]
[408392815,1773556246360,-300.0,0.000117,2]
[408392817,1773556246370,-245.40525383,0.000117,2]
[408392819,1773556246382,-54.59474617,0.000117,2]
[408392821,1773556246391,-300.0,0.000117,2]
[408392823,1773556246401,-110.28313904,0.000117,2]
[408392955,1773556944175,160.0,0.0001,120]
[408392958,1773557403009,187.63,2e-05,2]
[408392966,1773557432319,-384.62322837,0.00010513,2]
[408392967,1773557432331,-297.28605857,0.00010513,2]
[408393173,1773557440830,-1019.05201729,0.00010513,2]
[408393174,1773557440840,-657.01944389,0.00010513,2]
[408393180,1773557443819,-2642.01925188,0.00010513,2]
[408393181,1773557443828,-569.0,0.00010619,2]
[408393182,1773557443837,-851.61227972,0.00010619,2]
[408393183,1773557443846,-300.0,0.00011799,2]
[408393184,1773557443856,-377.34975053,0.000118,2]
[408393185,1773557443865,-235.3175707,0.000118,2]
[408393186,1773557443875,-377.20114554,0.000118,2]
[408393195,1773557446562,-45.72874897,0.000118,2]
[408393197,1773557446572,-408.01290539,0.000118,2]
[408393199,1773557446582,-29939.8311213,0.000118,2]
[408393221,1773558003758,156.25,2e-05,2]
[408393240,1773558214069,1963.6371124,2.001e-05,2]
[408393241,1773558222403,5000.0,2.001e-05,2]
[408393243,1773558231095,5000.0,2.001e-05,2]
[408393265,1773558328440,5000.0,2.001e-05,2]
[408393266,1773558442039,5000.0,2.001e-05,2]
[408393267,1773558450599,5000.0,2.001e-05,2]
[408393268,1773558477004,5000.0,2.001e-05,2]
[408393273,1773558603386,156.27,2e-05,2]
[408393325,1773558632170,-300.0,2.034e-05,2]
[408393331,1773558637606,-1341.25548051,2.034e-05,2]
[408393337,1773558639983,-501.28700355,2.034e-05,2]
[408393343,1773558642734,-1266.46,2.034e-05,2]
[408393344,1773558642849,-1590.99751594,2.034e-05,2]
[408393345,1773558642860,-156.25,2.1e-05,2]
[408393346,1773558642871,-156.25,2.1e-05,2]
[408393347,1773558642882,-156.27,2.1e-05,2]
[408393348,1773558642893,-156.27,2.1e-05,2]
[408393349,1773558642903,-1200.0,2.118e-05,2]
[408393350,1773558642913,-300.0,2.119e-05,2]
[408393351,1773558642922,-300.0,2.119e-05,2]
[408393352,1773558642940,-300.0,2.12e-05,2]
[408393353,1773558642950,-300.0,2.12e-05,2]
[408393354,1773558642960,-300.0,2.12e-05,2]
[408393355,1773558642969,-300.0,2.12e-05,2]
[408393356,1773558642979,-300.0,2.12e-05,2]
[408393357,1773558642989,-300.0,2.12e-05,2]
[408393358,1773558642999,-300.0,2.12e-05,2]
[408393359,1773558643009,-300.0,2.12e-05,2]
[408393360,1773558643019,-300.0,2.12e-05,2]
[408393361,1773558643028,-300.0,2.12e-05,2]
[408393362,1773558643037,-300.0,2.12e-05,2]
[408393363,1773558643047,-300.0,2.12e-05,2]
[408393364,1773558643056,-300.0,2.12e-05,2]
[408393365,1773558643066,-300.0,2.12e-05,2]
[408393366,1773558643082,-300.0,2.12e-05,2]
[408393367,1773558643104,-500.0,2.12e-05,2]
[408393368,1773558643119,-500.0,2.12e-05,2]
[408393369,1773558643128,-500.0,2.12e-05,2]
[408393370,1773558643138,-501.48765008,2.12e-05,2]
[408393371,1773558643150,-500.0,2.12e-05,2]
[408393372,1773558643159,-500.0,2.12e-05,2]
[408393373,1773558643168,-156.25,2.2e-05,2]
[408393374,1773558643178,-156.27,2.2e-05,2]
[408393375,1773558643189,-156.27,2.2e-05,2]
[408393376,1773558643202,-420.0,2.331e-05,2]
[408393377,1773558643211,-587.0,2.564e-05,2]
[408393378,1773558643220,-500.0,2.668e-05,2]
[408393379,1773558643230,-247.2838057,2.668e-05,2]
[408393380,1773558643240,-500.0,2.668e-05,2]
[408393381,1773558643249,-500.0,2.668e-05,2]
[408393382,1773558643259,-500.0,2.668e-05,2]
[408393383,1773558643268,-250.0,2.688e-05,2]
[408393384,1773558643277,-541.0,2.82e-05,2]
[408393385,1773558643287,-2468.72428279,9.396e-05,2]
[408393386,1773558643302,-1085.37325679,9.396e-05,2]
[408393387,1773558643311,-2069.23810765,9.496e-05,2]
[408393391,1773558645930,-5171.41624585,9.496e-05,2]
[408393392,1773558645939,-151.0,9.496e-05,2]
[408393393,1773558645948,-188.813824,9.496e-05,2]
[408393394,1773558645957,-8096.34179554,9.596e-05,2]
[408393395,1773558645967,-151.0,9.596e-05,2]
[408393396,1773558645976,-3000.0,9.596e-05,2]
[408393397,1773558645985,-516.028732,9.596e-05,2]
[408393398,1773558645995,-600.0,9.685e-05,2]
[408393399,1773558646004,-8732.21685891,9.696e-05,2]
[408393400,1773558646013,-151.0,9.696e-05,2]
[408393401,1773558646023,-8952.02923764,9.796e-05,2]
[408393402,1773558646032,-151.0,9.796e-05,2]
[408393403,1773558646042,-2000.0,9.9e-05,2]
[408393404,1773558646051,-2000.0,0.0001,2]
[408393405,1773558646060,-151.0,0.0001,2]
[408393406,1773558646069,-151.0,0.0001,2]
[408393407,1773558646078,-151.0,0.000101,2]
[408393408,1773558646089,-2000.0,0.000101,2]
[408393409,1773558646098,-2000.0,0.000102,2]
[408393410,1773558646107,-151.0,0.000103,2]
[408393411,1773558646117,-153.011429,0.000103,2]
[408393412,1773558646126,-2000.0,0.000103,2]
[408393413,1773558646136,-720.0,0.00010653,2]
[408393414,1773558646145,-273.641768,0.00011509,2]
[408393415,1773558646155,-151.0,0.00011509,2]
[408393416,1773558646164,-697.57,0.00011509,2]
[408393417,1773558646174,-806.22,0.00011568,4]
[408393418,1773558646184,-8457.54360068,0.000116,2]
[408393419,1773558646196,-26986.05703888,0.000116,2]
[408393420,1773558646207,-1257.42635663,0.000116,2]
[408393421,1773558646219,-3565.69888033,0.000116,2]
[408393428,1773559242114,5000.0,2.001e-05,2]
[408393429,1773559263900,5000.0,2.001e-05,2]
[408393430,1773559287136,5000.0,2.001e-05,2]
[408393432,1773559309784,5000.0,2.001e-05,2]
[408393433,1773559332032,5000.0,2.001e-05,2]
[408393434,1773559354519,5000.0,2.001e-05,2]
[408393435,1773559376618,5000.0,2.001e-05,2]
[408393436,1773559398814,5000.0,2.001e-05,2]
[408393437,1773559420830,5000.0,2.001e-05,2]
[408393438,1773559443413,5000.0,2.001e-05,2]
[408393439,1773559465723,5000.0,2.001e-05,2]
[408393440,1773559487728,5000.0,2.001e-05,2]
[408393442,1773559510008,5000.0,2.001e-05,2]
[408393443,1773559532032,5000.0,2.001e-05,2]
[408393444,1773559554352,5000.0,2.001e-05,2]
[408393445,1773559576843,5000.0,2.001e-05,2]
[408393447,1773559599186,5000.0,2.001e-05,2]
[408393448,1773559621506,5000.0,2.001e-05,2]
[408393452,1773559644674,5000.0,2.001e-05,2]
[408393453,1773559667131,192.11872801,2.001e-05,2]
[408393456,1773559825852,-714.12467701,2.013e-05,2]
[408393475,1773559831723,-424.09845499,2.013e-05,2]
[408393476,1773559831734,-1440.57311125,2.026e-05,2]
[408393477,1773559831747,-619.84912104,2.026e-05,2]
[408393488,1773559838475,-1875.42039241,2.026e-05,2]
[408393489,1773559838485,-1138.223132,2.097e-05,2]
[408393490,1773559838495,-1200.0,2.181e-05,2]
[408393491,1773559838504,-1138.223132,2.182e-05,2]
[408393492,1773559838513,-300.0,2.266e-05,2]
[408393493,1773559838522,-300.0,2.266e-05,2]
[408393494,1773559838532,-284.0,2.266e-05,2]
[408393495,1773559838542,-1138.223132,2.267e-05,2]
[408393496,1773559838551,-500.0,2.317e-05,2]
[408393497,1773559838560,-1138.223132,2.352e-05,2]
[408393498,1773559838569,-500.0,2.355e-05,2]
[408393499,1773559838578,-500.0,2.355e-05,2]
[408393500,1773559838588,-500.0,2.355e-05,2]
[408393501,1773559838597,-500.0,2.355e-05,2]
[408393502,1773559838607,-500.0,2.355e-05,2]
[408393503,1773559838616,-480.0,2.399e-05,2]
[408393504,1773559838625,-1138.223132,2.436e-05,2]
[408393505,1773559838635,-325.07615001,2.463e-05,2]
[408393506,1773559838645,-500.0,2.463e-05,2]
[408393507,1773559838654,-420.0,2.492e-05,2]
[408393508,1773559838663,-260.14021253,2.525e-05,2]
[408393509,1773559838672,-500.0,2.525e-05,2]
[408393510,1773559838681,-500.0,2.525e-05,2]
[408393511,1773559838690,-500.0,2.525e-05,2]
[408393512,1773559838700,-500.0,2.576e-05,2]
[408393513,1773559838709,-500.0,2.576e-05,2]
[408393514,1773559838718,-500.0,2.576e-05,2]
[408393515,1773559838728,-500.0,2.605e-05,2]
[408393516,1773559838737,-500.0,2.69e-05,2]
[408393517,1773559838747,-500.0,2.763e-05,2]
[408393518,1773559838756,-500.0,2.763e-05,2]
[408393519,1773559838766,-500.0,2.763e-05,2]
[408393520,1773559838776,-500.0,2.763e-05,2]
[408393521,1773559838785,-500.0,2.763e-05,2]
[408393522,1773559838794,-1000.0,2.865e-05,2]
[408393523,1773559838804,-1000.0,2.903e-05,2]
[408393524,1773559838813,-415.56140641,2.903e-05,2]
[408393525,1773559838823,-635.39974239,2.903e-05,2]
[408393526,1773559838831,-1000.0,2.903e-05,2]
[408393527,1773559838840,-151.0,3.011e-05,2]
[408393528,1773559838849,-151.0,3.011e-05,2]
[408393529,1773559838859,-151.0,3.011e-05,2]
[408393530,1773559838868,-197.60537834,3.011e-05,2]
[408393531,1773559838877,-1001.10942324,3.073e-05,2]
[408393532,1773559838886,-1000.0,3.073e-05,2]
[408393533,1773559838895,-615.66939479,3.073e-05,2]
[408393534,1773559838904,-1000.0,3.124e-05,2]
[408393535,1773559838913,-532.60290731,3.124e-05,2]
[408393536,1773559838923,-1000.0,3.124e-05,2]
[408393537,1773559838932,-1000.0,3.153e-05,2]
[408393538,1773559838941,-1000.0,3.238e-05,2]
[408393539,1773559838953,-1000.0,3.311e-05,2]
[408393540,1773559838962,-500.0,3.311e-05,2]
[408393541,1773559838971,-1000.0,3.311e-05,2]
[408393542,1773559838980,-1000.0,3.311e-05,2]
[408393543,1773559838989,-1500.0,3.413e-05,2]
[408393544,1773559838998,-151.0,3.413e-05,2]
[408393545,1773559839007,-151.0,3.413e-05,2]
[408393546,1773559839016,-154.932643,3.413e-05,2]
[408393547,1773559839025,-1500.0,3.451e-05,2]
[408393548,1773559839035,-1500.0,3.451e-05,2]
[408393549,1773559839044,-1001.22271628,3.621e-05,2]
[408393550,1773559839053,-1500.0,3.672e-05,2]
[408393551,1773559839062,-945.44378733,3.701e-05,2]
[408393552,1773559839071,-151.0,3.701e-05,2]
[408393553,1773559839080,-151.0,3.701e-05,2]
[408393554,1773559839090,-1557.00528376,3.786e-05,2]
[408393555,1773559839099,-1008.71160046,3.859e-05,2]
[408393556,1773559839109,-1002.49697717,3.859e-05,2]
[408393557,1773559839120,-338.8244817,3.961e-05,2]
[408393558,1773559839129,-422.80634748,3.999e-05,2]
[408393559,1773559839139,-1500.0,3.999e-05,2]
[408393560,1773559839153,-502.18510853,4.22e-05,2]
[408393561,1773559839163,-200.14696863,0.00010752,2]
[408393562,1773559839171,-518.98671372,0.00010774,2]
[408393563,1773559839181,-39000.79468162,0.000109,2]
[408393564,1773559839194,-6190.58748994,0.000109,2]
[408393565,1773559839207,-1634947.79212983,0.000109,2]
[408393589,1773559848945,1189.0,3e-05,10]
[408393607,1773560403067,156.28,2e-05,2]
[408393608,1773560403486,156.28,2e-05,2]
[408393609,1773560403795,156.28,2e-05,2]
[408393743,1773561002594,161.2,2e-05,2]
[408393744,1773561016685,1852.34780901,2.001e-05,2]
[408393768,1773561031886,-156.28,2.1e-05,2]
[408393770,1773561031896,-156.28,2.1e-05,2]
[408393772,1773561031905,-156.28,2.1e-05,2]
[408393774,1773561031916,-156.28,2.1e-05,2]
[408393776,1773561031925,-156.28,2.1e-05,2]
[408393778,1773561031935,-156.28,2.1e-05,2]
[408393780,1773561031945,-280.51408318,2.198e-05,2]
[408393783,1773561031956,-278.48591682,2.198e-05,2]
[408393785,1773561031966,-156.28,2.2e-05,2]
[408393786,1773561031976,-5.64743643,2.2e-05,2]
[408393788,1773561031987,-150.63256357,2.2e-05,2]
[408393790,1773561031996,-156.28,2.2e-05,2]
[408393791,1773561032006,-300.0,0.00010286,2]
[408393792,1773561032015,-300.0,0.00010286,2]
[408393793,1773561032025,-111.73493848,0.00010286,2]
[408393794,1773561032036,-188.26506152,0.00010286,2]
[408393795,1773561032046,-10637.9325554,0.0001029,2]
[408393796,1773561032055,-151.0,0.0001048,2]
[408393797,1773561032065,-186.7659433,0.00010639,2]
[408393798,1773561032075,-518.98671372,0.0001077,2]
[408393799,1773561032084,-2982.90401519,0.00010791,2]
[408393808,1773561037958,-1720.30055279,0.00010791,2]
[408393814,1773561040403,-689.39654173,0.00010791,2]
[408393833,1773561043715,-8756.62059446,0.00010791,2]
[408393834,1773561043724,-5066.07803796,0.00010791,2]
[408393835,1773561043733,-197.94980331,0.0001089,2]
[408393836,1773561043742,-1000.0,0.000109,2]
[408393837,1773561043751,-1000.0,0.000109,2]
[408393838,1773561043760,-1000.0,0.000109,2]
[408393839,1773561043769,-1000.0,0.000109,2]
[408393840,1773561043778,-1000.0,0.000109,2]
[408393841,1773561043787,-1000.0,0.000109,2]
[408393842,1773561043796,-1000.0,0.000109,2]
[408393843,1773561043806,-1000.0,0.000109,2]
[408393844,1773561043814,-1000.0,0.000109,2]
[408393845,1773561043823,-1000.0,0.000109,2]
[408393846,1773561043832,-1000.0,0.000109,2]
[408393847,1773561043842,-1000.0,0.000109,2]
[408393848,1773561043851,-1000.0,0.000109,2]
[408393849,1773561043860,-1000.0,0.000109,2]
[408393850,1773561043869,-1000.0,0.000109,2]
[408393851,1773561043878,-1000.0,0.000109,2]
[408393852,1773561043887,-956.0659256,0.000109,2]
[408393853,1773561043896,-468064.1504044,0.000109,2]
[408393854,1773561043908,-5807.11482503,0.000109,2]
[408393855,1773561043928,-4246.33321075,0.000109,2]
[408393856,1773561043941,-4814.99999986,0.000109,2]
[408393857,1773561043954,-3503.03870997,0.000109,2]
[408393860,1773561046146,-2907.29887748,0.000109,2]
[408394167,1773562202941,183.87,2e-05,2]
[408394608,1773562243418,-443.24779055,0.00010682,2]
[408394611,1773562243430,-126.75220945,0.00010682,2]
[408394613,1773562243439,-518.98671372,0.00010782,2]
[408394615,1773562243448,-146.428175,0.00010791,2]
[408394617,1773562243460,-296.81961555,0.00010791,2]
[408394619,1773562243469,-591.00667062,0.00010791,2]
[408394917,1773562246272,-4436.89651096,0.00010791,2]
[408395130,1773562557251,160.0,0.0001,120]
[408395148,1773563402627,189.77,2e-05,2]
[408395168,1773563432238,-300.0,0.00010399,2]
[408395170,1773563432248,-438.15826593,0.00010399,2]
[408395172,1773563432259,-127.84173407,0.00010399,2]
[408395174,1773563432268,-152.11907015,0.000104,2]
[408395176,1773563432278,-500.4895533,0.000104,2]
[408395178,1773563432289,-4259.96550427,0.000104,2]
[408395307,1773563438376,-270.6,0.000104,2]
[408395308,1773563438403,-29197.67232786,0.000104,2]
[408395309,1773563438415,-334.52382174,0.000104,2]
[408395608,1773563443543,-10008.319323,0.000104,2]
[408395652,1773563446534,-22804.0011941,0.000104,2]
[408395686,1773564632354,-324.6157471,9.687e-05,2]
[408395687,1773564632364,-556.0,9.687e-05,2]